[Event "FIDE Women World Blitz 2021"]
[Site "Warsaw"]
[Date "2021.12.29"]
[Round "4.5"]
[White "Vaishali R"]
[Black "Antolak, Julia"]
[Result "1-0"]
[ECO "A45"]
[WhiteElo "2405"]
[BlackElo "2334"]
[Annotator "NA"]
[PlyCount "65"]
[EventDate "2021.12.29"]
[EventType "swiss"]
[EventCountry "POL"]
[Tiebreak "Cut1 Buchholz"]
[SourceTitle "playchess.com"]
[Source "ChessBase"]
[SourceQuality "1"]
[TimeControl "180+2"]

1. d4 {[%emt 0:00:02]} Nf6 {[%emt 0:00:01]} 2. Bf4 {[%emt 0:00:01]} b6 {
[%emt 0:00:04]} 3. e3 {[%emt 0:00:04]} Bb7 {[%emt 0:00:01]} 4. c4 {[%emt 0:00:
03]} g6 {[%emt 0:00:05]} 5. Nc3 {[%emt 0:00:02]} Bg7 {[%emt 0:00:01]} 6. d5 {
[%emt 0:00:10]} O-O {[%emt 0:00:10]} 7. h4 {[%emt 0:00:11]} c6 {[%emt 0:00:14]}
8. Be2 {[%emt 0:00:19]} cxd5 {[%emt 0:00:04]} 9. cxd5 {[%emt 0:00:02]} d6 {
[%emt 0:00:01]} 10. h5 {[%emt 0:00:08]} Nbd7 {[%emt 0:00:02]} 11. hxg6 {
[%emt 0:00:24]} fxg6 {[%emt 0:00:01]} 12. Nf3 {[%emt 0:00:05]} Nc5 {[%emt 0:00:
21]} 13. Rc1 {[%emt 0:00:22]} Qd7 {[%emt 0:00:07]} 14. Bb5 {[%emt 0:00:30]} Qf5
{[%emt 0:00:11]} 15. Nd4 {[%emt 0:00:07]} Qg4 {[%emt 0:01:01]} 16. Be2 {
[%emt 0:00:04]} Qd7 {[%emt 0:00:01]} 17. b4 {[%emt 0:00:05]} Nce4 {[%emt 0:00:
16]} 18. Nxe4 {[%emt 0:00:02]} Nxe4 {[%emt 0:00:02]} 19. Bg4 {[%emt 0:00:10]}
Qe8 {[%emt 0:00:09]} 20. Ne6 {[%emt 0:00:21]} Bc3+ {[%emt 0:00:16]} 21. Rxc3 {
[%emt 0:00:05]} Nxc3 {[%emt 0:00:06]} 22. Qd4 {[%emt 0:00:02]} Rf6 {[%emt 0:00:
03]} 23. Qxc3 {[%emt 0:00:06]} Rc8 {[%emt 0:00:15]} 24. Nc7 {[%emt 0:00:04]}
Rxc7 {[%emt 0:00:06]} 25. Qxc7 {[%emt 0:00:02]} Bxd5 {[%emt 0:00:01]} 26. O-O {
[%emt 0:00:08]} Qf7 {[%emt 0:00:04]} 27. Qxa7 {[%emt 0:00:04]} h5 {[%emt 0:00:
04]} 28. Be2 {[%emt 0:00:05]} g5 {[%emt 0:00:06]} 29. Bxg5 {[%emt 0:00:07]} Qg7
{[%emt 0:00:02]} 30. f4 {[%emt 0:00:01]} Re6 {[%emt 0:00:02]} 31. Qxb6 {
[%emt 0:00:02]} Qg6 {[%emt 0:00:04]} 32. Bf3 {[%emt 0:00:02]} Bxf3 {[%emt 0:00:
05]} 33. Rxf3 {[%emt 0:00:02]} 1-0

[Event "FIDE Women World Blitz 2021"]
[Site "Warsaw"]
[Date "2021.12.29"]
[Round "4.5"]
[White "Sliwicka, Alicja"]
[Black "Wikar, Martyna"]
[Result "1-0"]
[ECO "A36"]
[WhiteElo "2303"]
[BlackElo "1899"]
[Annotator "NA"]
[PlyCount "79"]
[EventDate "2021.12.29"]
[EventType "swiss"]
[EventCountry "POL"]
[Tiebreak "Cut1 Buchholz"]
[SourceTitle "playchess.com"]
[Source "ChessBase"]
[SourceQuality "1"]
[TimeControl "180+2"]

1. e4 {[%emt 0:00:01]} c5 {[%emt 0:00:01]} 2. Ne2 {[%emt 0:00:01]} Nc6 {
[%emt 0:00:04]} 3. c4 {[%emt 0:00:02]} e5 {[%emt 0:00:07]} 4. g3 {[%emt 0:00:
01]} g6 {[%emt 0:00:03]} 5. Bg2 {[%emt 0:00:02]} Bg7 {[%emt 0:00:01]} 6. O-O {
[%emt 0:00:02]} Nge7 {[%emt 0:00:01]} 7. d3 {[%emt 0:00:01]} O-O {[%emt 0:00:
03]} 8. Nbc3 {[%emt 0:00:02]} d6 {[%emt 0:00:01]} 9. Be3 {[%emt 0:00:06]} Be6 {
[%emt 0:00:03]} 10. Qd2 {[%emt 0:00:03]} Qd7 {[%emt 0:00:14]} 11. f4 {[%emt 0:
00:09]} exf4 {[%emt 0:00:13]} 12. Nxf4 {[%emt 0:00:02]} Nd4 {[%emt 0:00:05]}
13. Rae1 {[%emt 0:00:06]} Nec6 {[%emt 0:00:05]} 14. Ncd5 {[%emt 0:00:08]} Rae8
{[%emt 0:00:15]} 15. Rf2 {[%emt 0:00:08]} Kh8 {[%emt 0:00:20]} 16. Ref1 {
[%emt 0:00:03]} f5 {[%emt 0:00:20]} 17. Nxe6 {[%emt 0:00:18]} Rxe6 {[%emt 0:00:
19]} 18. Bh3 {[%emt 0:00:02]} Re5 {[%emt 0:00:23]} 19. a3 {[%emt 0:00:28]} b6 {
[%emt 0:00:15]} 20. b4 {[%emt 0:00:04]} Nb3 {[%emt 0:00:13]} 21. Qd1 {[%emt 0:
00:04]} Ncd4 {[%emt 0:00:13]} 22. Bf4 {[%emt 0:00:12]} Ree8 {[%emt 0:00:04]}
23. exf5 {[%emt 0:00:20]} gxf5 {[%emt 0:00:08]} 24. Qh5 {[%emt 0:00:04]} Qf7 {
[%emt 0:00:05]} 25. Qxf7 {[%emt 0:00:04]} Rxf7 {[%emt 0:00:01]} 26. Bxd6 {
[%emt 0:00:11]} Ne2+ {[%emt 0:00:06]} 27. Kh1 {[%emt 0:00:02]} Nbd4 {[%emt 0:
00:03]} 28. bxc5 {[%emt 0:00:19]} bxc5 {[%emt 0:00:02]} 29. Bxc5 {[%emt 0:00:
02]} Rb7 {[%emt 0:00:05]} 30. Bb4 {[%emt 0:00:26]} a5 {[%emt 0:00:06]} 31. Bxa5
{[%emt 0:00:04]} Rb2 {[%emt 0:00:01]} 32. Bb4 {[%emt 0:00:13]} Rb3 {[%emt 0:00:
03]} 33. Bxf5 {[%emt 0:00:07]} Nxf5 {[%emt 0:00:01]} 34. Rxf5 {[%emt 0:00:01]}
Rxd3 {[%emt 0:00:02]} 35. Nf4 {[%emt 0:00:04]} Nxf4 {[%emt 0:00:02]} 36. R5xf4
{[%emt 0:00:02]} h6 {[%emt 0:00:03]} 37. Kg2 {[%emt 0:00:02]} Rb3 {[%emt 0:00:
01]} 38. R1f3 {[%emt 0:00:02]} Re2+ {[%emt 0:00:02]} 39. Rf2 {[%emt 0:00:02]}
Re1 {[%emt 0:00:02]} 40. Bxe1 {[%emt 0:00:02]} 1-0

[Event "FIDE Women World Blitz 2021"]
[Site "Warsaw"]
[Date "2021.12.29"]
[Round "4.6"]
[White "Balajayeva, Khanim"]
[Black "Shuvalova, Polina"]
[Result "0-1"]
[ECO "B14"]
[WhiteElo "2369"]
[BlackElo "2515"]
[Annotator "ChessBase"]
[PlyCount "68"]
[EventDate "2021.12.29"]
[EventType "swiss"]
[EventCountry "POL"]
[Tiebreak "Cut1 Buchholz"]
[SourceTitle "playchess.com"]
[Source "ChessBase"]
[SourceQuality "1"]
[TimeControl "180+2"]

1. e4 {[%emt 0:00:01]} c6 {[%emt 0:00:01]} 2. d4 {[%emt 0:00:01]} d5 {[%emt 0:
00:05]} 3. exd5 {[%emt 0:00:01]} cxd5 {[%emt 0:00:01]} 4. c4 {[%emt 0:00:01]}
Nf6 {[%emt 0:00:02]} 5. Nc3 {[%emt 0:00:01]} e6 {[%emt 0:00:01]} 6. Nf3 {
[%emt 0:00:02]} Bb4 {[%emt 0:00:01]} 7. cxd5 {[%emt 0:00:02]} Nxd5 {[%emt 0:00:
02]} 8. Bd2 {[%emt 0:00:01]} Nc6 {[%emt 0:00:02]} 9. Bd3 {[%emt 0:00:03]} O-O {
[%emt 0:00:03]} 10. O-O {[%emt 0:00:02]} Be7 {[%emt 0:00:01]} 11. a3 {[%emt 0:
00:04]} Bf6 {[%emt 0:00:01]} 12. Be3 {[%emt 0:00:08]} Nce7 {[%emt 0:00:11]} 13.
Ne4 {[%emt 0:00:18]} Nf5 {[%emt 0:00:06]} 14. Nxf6+ {[%emt 0:00:26]} Nxf6 {
[%emt 0:00:24]} 15. Bg5 {[%emt 0:00:16]} h6 {[%emt 0:00:02]} 16. Bxf5 {[%emt 0:
00:06]} exf5 {[%emt 0:00:08]} 17. Bxf6 {[%emt 0:00:04]} Qxf6 {[%emt 0:00:02]}
18. Qb3 {[%emt 0:00:01]} b6 {[%emt 0:00:05]} 19. Ne5 {[%emt 0:00:16]} Be6 {
[%emt 0:00:03]} 20. Qb4 {[%emt 0:00:16]} Rfd8 {[%emt 0:00:04]} 21. Rac1 {
[%emt 0:00:09]} Rac8 {[%emt 0:00:08]} 22. Nc6 {[%emt 0:00:05]} Re8 {[%emt 0:00:
09]} 23. Nxa7 {[%emt 0:00:04]} Rxc1 {[%emt 0:00:13]} 24. Rxc1 {[%emt 0:00:00]}
f4 {[%emt 0:00:01]} 25. f3 {[%emt 0:00:13]} Bd5 {[%emt 0:00:08]} 26. Nb5 {
[%emt 0:00:06]} Qg5 {[%emt 0:00:30]} 27. Qd2 {[%emt 0:00:33]} Bxf3 {[%emt 0:00:
10]} 28. Nd6 {[%emt 0:00:03]} Rd8 {[%emt 0:00:38]} 29. Nc4 {[%emt 0:00:09]}
Rxd4 {[%emt 0:00:08]} 30. Qf2 {[%emt 0:00:00]} Be4 {[%emt 0:00:08]} 31. Nxb6 {
[%emt 0:00:14]} f3 {[%emt 0:00:03]} 32. Rc8+ {[%emt 0:00:08]} Kh7 {[%emt 0:00:
01]} 33. h4 {[%emt 0:00:04]} Rd1+ {[%emt 0:00:07]} 34. Kh2 {[%emt 0:00:00]}
Qxg2+ {[%emt 0:00:02]} 0-1

[Event "FIDE Women World Blitz 2021"]
[Site "Warsaw"]
[Date "2021.12.29"]
[Round "4.6"]
[White "Kovanova, Baira"]
[Black "Zabrzanska, Weronika"]
[Result "1-0"]
[ECO "C50"]
[WhiteElo "2331"]
[BlackElo "1596"]
[Annotator "NA"]
[PlyCount "49"]
[EventDate "2021.12.29"]
[EventType "swiss"]
[EventCountry "POL"]
[Tiebreak "Cut1 Buchholz"]
[SourceTitle "playchess.com"]
[Source "ChessBase"]
[SourceQuality "1"]
[TimeControl "180+2"]

1. e4 {[%emt 0:00:01]} e5 {[%emt 0:00:02]} 2. Nf3 {[%emt 0:00:01]} Nc6 {
[%emt 0:00:01]} 3. Bc4 {[%emt 0:00:01]} Bc5 {[%emt 0:00:01]} 4. d3 {[%emt 0:00:
01]} Nf6 {[%emt 0:00:01]} 5. Nbd2 {[%emt 0:00:03]} O-O {[%emt 0:00:07]} 6. h3 {
[%emt 0:00:09]} d5 {[%emt 0:00:09]} 7. exd5 {[%emt 0:00:04]} Nxd5 {[%emt 0:00:
01]} 8. O-O {[%emt 0:00:04]} h6 {[%emt 0:00:01]} 9. Re1 {[%emt 0:00:34]} Re8 {
[%emt 0:00:24]} 10. a3 {[%emt 0:00:26]} a6 {[%emt 0:00:12]} 11. Ne4 {[%emt 0:
00:05]} Be7 {[%emt 0:00:21]} 12. d4 {[%emt 0:00:17]} Nb6 {[%emt 0:00:20]} 13.
Bb3 {[%emt 0:00:19]} exd4 {[%emt 0:00:06]} 14. Bf4 {[%emt 0:00:13]} Bf5 {
[%emt 0:00:16]} 15. Qd2 {[%emt 0:00:15]} Nd5 {[%emt 0:00:28]} 16. Ng3 {[%emt 0:
00:20]} Bg6 {[%emt 0:00:43]} 17. Be5 {[%emt 0:00:02]} Bf6 {[%emt 0:00:18]} 18.
Bxf6 {[%emt 0:00:12]} Nxf6 {[%emt 0:00:01]} 19. Rxe8+ {[%emt 0:00:05]} Qxe8 {
[%emt 0:00:04]} 20. Re1 {[%emt 0:00:04]} Qd7 {[%emt 0:00:01]} 21. Nh4 {[%emt 0:
00:07]} Bh7 {[%emt 0:00:01]} 22. Qf4 {[%emt 0:00:06]} Rd8 {[%emt 0:00:04]} 23.
Nhf5 {[%emt 0:00:02]} Na5 {[%emt 0:00:03]} 24. Nxh6+ {[%emt 0:00:07]} gxh6 {
[%emt 0:00:05]} 25. Qxf6 1-0

[Event "FIDE Women World Blitz 2021"]
[Site "Warsaw"]
[Date "2021.12.29"]
[Round "4.7"]
[White "Batsiashvili, Nino"]
[Black "Nurgali, Nazerke"]
[Result "1-0"]
[ECO "D37"]
[WhiteElo "2491"]
[BlackElo "2267"]
[Annotator "ChessBase"]
[PlyCount "125"]
[EventDate "2021.12.29"]
[EventType "swiss"]
[EventCountry "POL"]
[Tiebreak "Cut1 Buchholz"]
[SourceTitle "playchess.com"]
[Source "ChessBase"]
[SourceQuality "1"]
[TimeControl "180+2"]

1. d4 {[%emt 0:00:00]} d5 {[%emt 0:00:01]} 2. c4 {[%emt 0:00:01]} e6 {[%emt 0:
00:01]} 3. Nf3 {[%emt 0:00:01]} Nf6 {[%emt 0:00:01]} 4. Nc3 {[%emt 0:00:01]}
Be7 {[%emt 0:00:02]} 5. Bf4 {[%emt 0:00:02]} O-O {[%emt 0:00:02]} 6. e3 {
[%emt 0:00:00]} b6 {[%emt 0:00:01]} 7. cxd5 {[%emt 0:00:03]} exd5 {[%emt 0:00:
02]} 8. Bd3 {[%emt 0:00:01]} Bb7 {[%emt 0:00:02]} 9. O-O {[%emt 0:00:04]} c5 {
[%emt 0:00:02]} 10. b3 {[%emt 0:00:00]} Na6 {[%emt 0:00:03]} 11. Rc1 {[%emt 0:
00:02]} Nc7 {[%emt 0:00:02]} 12. Bg3 {[%emt 0:00:30]} Ne6 {[%emt 0:00:03]} 13.
Bf5 {[%emt 0:00:06]} g6 {[%emt 0:00:30]} 14. Bh3 {[%emt 0:00:15]} Ne4 {[%emt 0:
00:10]} 15. Nxe4 {[%emt 0:00:20]} dxe4 {[%emt 0:00:01]} 16. Ne5 {[%emt 0:00:11]
} Ng5 {[%emt 0:00:18]} 17. Bg4 {[%emt 0:00:04]} cxd4 {[%emt 0:00:14]} 18. Qxd4
{[%emt 0:00:04]} h5 {[%emt 0:00:19]} 19. Be2 {[%emt 0:00:10]} Qxd4 {[%emt 0:00:
06]} 20. exd4 {[%emt 0:00:01]} Ne6 {[%emt 0:00:01]} 21. Bc4 {[%emt 0:00:13]}
Nxd4 {[%emt 0:00:40]} 22. Nxg6 {[%emt 0:00:04]} Rfe8 {[%emt 0:00:24]} 23. Nxe7+
{[%emt 0:00:06]} Rxe7 {[%emt 0:00:01]} 24. Rfe1 {[%emt 0:00:16]} Nf5 {[%emt 0:
00:09]} 25. Bf4 {[%emt 0:00:04]} Kg7 {[%emt 0:00:12]} 26. Rcd1 {[%emt 0:00:04]}
Rae8 {[%emt 0:00:07]} 27. h3 {[%emt 0:00:10]} Bc6 {[%emt 0:00:08]} 28. Bc1 {
[%emt 0:00:17]} e3 {[%emt 0:00:02]} 29. fxe3 {[%emt 0:00:04]} Nxe3 {[%emt 0:00:
01]} 30. Bxe3 {[%emt 0:00:15]} Rxe3 {[%emt 0:00:01]} 31. Rxe3 {[%emt 0:00:01]}
Rxe3 {[%emt 0:00:00]} 32. Kf2 {[%emt 0:00:02]} Rc3 {[%emt 0:00:01]} 33. Rd2 {
[%emt 0:00:02]} Rc1 {[%emt 0:00:03]} 34. h4 {[%emt 0:00:03]} a5 {[%emt 0:00:03]
} 35. Be2 {[%emt 0:00:04]} Rh1 {[%emt 0:00:10]} 36. Kg3 {[%emt 0:00:02]} Rg1 {
[%emt 0:00:01]} 37. Bxh5 {[%emt 0:00:01]} b5 {[%emt 0:00:03]} 38. Rf2 {[%emt 0:
00:03]} Bd5 {[%emt 0:00:00]} 39. Kh2 {[%emt 0:00:02]} Ra1 {[%emt 0:00:02]} 40.
Rf5 {[%emt 0:00:05]} Bc6 {[%emt 0:00:03]} 41. Rxf7+ {[%emt 0:00:01]} Kh6 {
[%emt 0:00:03]} 42. Rf6+ {[%emt 0:00:02]} Kxh5 {[%emt 0:00:01]} 43. Rxc6 {
[%emt 0:00:00]} Kxh4 {[%emt 0:00:01]} 44. Rc2 {[%emt 0:00:05]} b4 {[%emt 0:00:
02]} 45. Rd2 {[%emt 0:00:02]} Kg4 {[%emt 0:00:03]} 46. Rd4+ {[%emt 0:00:02]}
Kf5 {[%emt 0:00:01]} 47. Rd5+ Kf4 {[%emt 0:00:03]} 48. Rxa5 {[%emt 0:00:01]}
Kg4 {[%emt 0:00:01]} 49. Ra4 {[%emt 0:00:01]} Kf5 {[%emt 0:00:03]} 50. Rxb4 {
[%emt 0:00:01]} Rxa2 {[%emt 0:00:01]} 51. Rb8 {[%emt 0:00:02]} Rb2 {[%emt 0:00:
01]} 52. Kg3 {[%emt 0:00:02]} Kg5 {[%emt 0:00:00]} 53. Rb5+ {[%emt 0:00:01]}
Kg6 {[%emt 0:00:01]} 54. Kf3 {[%emt 0:00:01]} Kf6 {[%emt 0:00:01]} 55. g4 {
[%emt 0:00:01]} Kg6 {[%emt 0:00:01]} 56. Kf4 {[%emt 0:00:02]} Rf2+ {[%emt 0:00:
01]} 57. Ke4 {[%emt 0:00:02]} Rg2 {[%emt 0:00:01]} 58. g5 {[%emt 0:00:01]} Rg4+
{[%emt 0:00:03]} 59. Kd3 {[%emt 0:00:02]} Rg3+ {[%emt 0:00:03]} 60. Kc4 {
[%emt 0:00:01]} Rg4+ {[%emt 0:00:01]} 61. Kc3 {[%emt 0:00:01]} Rg3+ {[%emt 0:
00:01]} 62. Kb4 {[%emt 0:00:01]} Rg4+ {[%emt 0:00:03]} 63. Ka5 {[%emt 0:00:00]}
1-0

[Event "FIDE Women World Blitz 2021"]
[Site "Warsaw"]
[Date "2021.12.29"]
[Round "4.7"]
[White "Pavlidou, Ekaterini"]
[Black "Gaponenko, Inna"]
[Result "0-1"]
[ECO "A42"]
[WhiteElo "2177"]
[BlackElo "2339"]
[Annotator "NA"]
[PlyCount "69"]
[EventDate "2021.12.29"]
[EventType "swiss"]
[EventCountry "POL"]
[Tiebreak "Cut1 Buchholz"]
[SourceTitle "playchess.com"]
[Source "ChessBase"]
[SourceQuality "1"]
[TimeControl "180+2"]

1. d4 {[%emt 0:00:02]} g6 {[%emt 0:00:01]} 2. c4 {[%emt 0:00:02]} Bg7 {[%emt 0:
00:00]} 3. Nc3 {[%emt 0:00:02]} d6 {[%emt 0:00:04]} 4. e4 {[%emt 0:00:02]} Nc6
{[%emt 0:00:03]} 5. Be3 {[%emt 0:00:04]} e5 {[%emt 0:00:01]} 6. d5 {[%emt 0:00:
01]} Nce7 {[%emt 0:00:01]} 7. Bd3 {[%emt 0:00:14]} f5 {[%emt 0:00:01]} 8. exf5
{[%emt 0:00:01]} Nxf5 {[%emt 0:00:01]} 9. Bxf5 {[%emt 0:00:02]} Bxf5 {[%emt 0:
00:02]} 10. g4 {[%emt 0:00:08]} Bd7 {[%emt 0:00:01]} 11. h3 {[%emt 0:00:02]}
Nf6 {[%emt 0:00:01]} 12. Nge2 {[%emt 0:00:03]} O-O {[%emt 0:00:02]} 13. Ng3 {
[%emt 0:00:01]} a6 {[%emt 0:00:04]} 14. Qe2 {[%emt 0:00:14]} b5 {[%emt 0:00:08]
} 15. g5 {[%emt 0:00:12]} Nh5 {[%emt 0:00:10]} 16. Nxh5 {[%emt 0:00:05]} gxh5 {
[%emt 0:00:01]} 17. c5 {[%emt 0:00:29]} Qe8 {[%emt 0:00:35]} 18. c6 {[%emt 0:
00:21]} Bf5 {[%emt 0:00:03]} 19. O-O-O {[%emt 0:00:14]} b4 {[%emt 0:00:11]} 20.
Nb1 {[%emt 0:00:08]} Be4 {[%emt 0:00:01]} 21. Nd2 {[%emt 0:00:11]} Bxh1 {
[%emt 0:00:35]} 22. Rxh1 {[%emt 0:00:01]} e4 {[%emt 0:00:01]} 23. Nc4 {[%emt 0:
00:15]} Qg6 {[%emt 0:00:06]} 24. h4 {[%emt 0:00:09]} Rf5 {[%emt 0:00:05]} 25.
Rd1 {[%emt 0:00:04]} Qf7 {[%emt 0:00:11]} 26. Qd2 {[%emt 0:00:01]} a5 {[%emt 0:
00:00]} 27. Bb6 {[%emt 0:00:27]} Rc8 {[%emt 0:00:43]} 28. Be3 {[%emt 0:00:04]}
a4 {[%emt 0:00:07]} 29. Qxb4 {[%emt 0:00:07]} Rxd5 {[%emt 0:00:01]} 30. Rxd5 {
[%emt 0:00:06]} Qxd5 {[%emt 0:00:01]} 31. Qxa4 {[%emt 0:00:02]} Rb8 {[%emt 0:
00:06]} 32. b3 {[%emt 0:00:06]} Rf8 {[%emt 0:00:14]} 33. Qa5 {[%emt 0:00:03]}
Qxc6 {[%emt 0:00:02]} 34. Qd2 {[%emt 0:00:03]} d5 {[%emt 0:00:02]} 35. Qc2 {
[%emt 0:00:04]} 0-1

[Event "FIDE Women World Blitz 2021"]
[Site "Warsaw"]
[Date "2021.12.29"]
[Round "4.8"]
[White "Kashlinskaya, Alina"]
[Black "Heredia Serrano, Carla"]
[Result "1-0"]
[ECO "D16"]
[WhiteElo "2482"]
[BlackElo "2138"]
[Annotator "ChessBase"]
[PlyCount "59"]
[EventDate "2021.12.29"]
[EventType "swiss"]
[EventCountry "POL"]
[Tiebreak "Cut1 Buchholz"]
[SourceTitle "playchess.com"]
[Source "ChessBase"]
[SourceQuality "1"]
[TimeControl "180+2"]

1. d4 {[%emt 0:00:02]} d5 {[%emt 0:00:01]} 2. c4 {[%emt 0:00:02]} c6 {[%emt 0:
00:00]} 3. Nf3 {[%emt 0:00:03]} Nf6 {[%emt 0:00:01]} 4. Nc3 {[%emt 0:00:01]}
dxc4 {[%emt 0:00:03]} 5. a4 {[%emt 0:00:01]} a5 {[%emt 0:00:01]} 6. e4 {
[%emt 0:00:13]} Bg4 {[%emt 0:00:02]} 7. Bxc4 {[%emt 0:00:02]} e6 {[%emt 0:00:
01]} 8. Be3 {[%emt 0:00:04]} Bb4 {[%emt 0:00:08]} 9. Qd3 {[%emt 0:00:05]} Nbd7
{[%emt 0:00:10]} 10. Nd2 {[%emt 0:00:14]} O-O {[%emt 0:00:19]} 11. O-O {
[%emt 0:00:05]} Bh5 {[%emt 0:00:08]} 12. f3 {[%emt 0:00:03]} Qe7 {[%emt 0:00:
19]} 13. Qe2 {[%emt 0:00:08]} Rfd8 {[%emt 0:00:23]} 14. Qf2 {[%emt 0:00:01]}
Bg6 {[%emt 0:00:05]} 15. Nb3 {[%emt 0:00:14]} h6 {[%emt 0:00:12]} 16. Nc1 {
[%emt 0:00:21]} Rac8 {[%emt 0:00:43]} 17. N1e2 {[%emt 0:00:02]} e5 {[%emt 0:00:
05]} 18. Rad1 {[%emt 0:00:06]} exd4 {[%emt 0:00:18]} 19. Nxd4 {[%emt 0:00:01]}
Bc5 {[%emt 0:00:04]} 20. Kh1 {[%emt 0:00:09]} Ne5 {[%emt 0:00:08]} 21. Ba2 {
[%emt 0:00:01]} Rd7 {[%emt 0:00:03]} 22. Nf5 {[%emt 0:00:11]} Bxf5 {[%emt 0:00:
01]} 23. Bxc5 {[%emt 0:00:02]} Qe8 {[%emt 0:00:24]} 24. exf5 {[%emt 0:00:01]}
Nd3 {[%emt 0:00:01]} 25. Qe3 {[%emt 0:00:20]} Nxc5 {[%emt 0:00:02]} 26. Qxc5 {
[%emt 0:00:01]} Rxd1 {[%emt 0:00:02]} 27. Rxd1 {[%emt 0:00:04]} Rd8 {[%emt 0:
00:04]} 28. Rxd8 {[%emt 0:00:04]} Qxd8 {[%emt 0:00:01]} 29. Kg1 {[%emt 0:00:12]
} Qe7 {[%emt 0:00:01]} 30. Qxe7 {[%emt 0:00:01]} 1-0

[Event "FIDE Women World Blitz 2021"]
[Site "Warsaw"]
[Date "2021.12.29"]
[Round "4.8"]
[White "Semenova, Elena"]
[Black "Danielian, Elina"]
[Result "1-0"]
[ECO "B10"]
[WhiteElo "2233"]
[BlackElo "2450"]
[Annotator "ChessBase"]
[PlyCount "49"]
[EventDate "2021.12.29"]
[EventType "swiss"]
[EventCountry "POL"]
[Tiebreak "Cut1 Buchholz"]
[SourceTitle "playchess.com"]
[Source "ChessBase"]
[SourceQuality "1"]
[TimeControl "180+2"]

1. e4 {[%emt 0:00:01]} c6 {[%emt 0:00:01]} 2. Nf3 {[%emt 0:00:01]} d5 3. d3 Bg4
{[%emt 0:00:19]} 4. Be2 {[%emt 0:00:09]} Nd7 {[%emt 0:00:16]} 5. O-O {[%emt 0:
00:02]} Ngf6 {[%emt 0:00:37]} 6. exd5 {[%emt 0:00:04]} cxd5 {[%emt 0:00:01]} 7.
c4 {[%emt 0:00:01]} e6 {[%emt 0:00:13]} 8. Nc3 {[%emt 0:00:01]} dxc4 {[%emt 0:
00:22]} 9. dxc4 {[%emt 0:00:01]} Bc5 {[%emt 0:00:08]} 10. h3 {[%emt 0:00:01]}
Bh5 {[%emt 0:00:02]} 11. Bf4 {[%emt 0:00:04]} O-O {[%emt 0:00:05]} 12. Bd6 {
[%emt 0:00:02]} Bxd6 {[%emt 0:00:07]} 13. Qxd6 {[%emt 0:00:01]} Rc8 {[%emt 0:
00:04]} 14. Rad1 {[%emt 0:00:02]} Bxf3 {[%emt 0:00:17]} 15. Bxf3 {[%emt 0:00:
00]} Rxc4 {[%emt 0:00:05]} 16. Bxb7 {[%emt 0:00:12]} Qb8 {[%emt 0:00:04]} 17.
Ba6 {[%emt 0:00:13]} Qxd6 {[%emt 0:00:09]} 18. Rxd6 {[%emt 0:00:00]} Rc7 {
[%emt 0:00:03]} 19. Rfd1 {[%emt 0:00:04]} Nc5 {[%emt 0:00:09]} 20. Be2 {
[%emt 0:00:07]} g6 {[%emt 0:00:01]} 21. Bf3 {[%emt 0:00:06]} Rb8 {[%emt 0:00:
05]} 22. R1d2 {[%emt 0:00:01]} a5 {[%emt 0:00:05]} 23. Kf1 {[%emt 0:00:01]} h5
{[%emt 0:00:02]} 24. Rd8+ {[%emt 0:00:04]} Kg7 {[%emt 0:00:09]} 25. Rxb8 {
[%emt 0:00:04]} 1-0

[Event "FIDE Women World Blitz 2021"]
[Site "Warsaw"]
[Date "2021.12.29"]
[Round "4.9"]
[White "Efimenko, Maria"]
[Black "Kamalidenova, Meruert"]
[Result "0-1"]
[ECO "B22"]
[WhiteElo "2207"]
[BlackElo "2339"]
[Annotator "NA"]
[PlyCount "76"]
[EventDate "2021.12.29"]
[EventType "swiss"]
[EventCountry "POL"]
[Tiebreak "Cut1 Buchholz"]
[SourceTitle "playchess.com"]
[Source "ChessBase"]
[SourceQuality "1"]
[TimeControl "180+2"]

1. e4 {[%emt 0:00:01]} c5 {[%emt 0:00:01]} 2. c3 {[%emt 0:00:01]} Nf6 {[%emt 0:
00:05]} 3. e5 {[%emt 0:00:01]} Nd5 {[%emt 0:00:01]} 4. d4 {[%emt 0:00:00]} cxd4
{[%emt 0:00:02]} 5. cxd4 {[%emt 0:00:02]} e6 {[%emt 0:00:03]} 6. Nf3 {[%emt 0:
00:03]} d6 {[%emt 0:00:01]} 7. Bc4 {[%emt 0:00:03]} dxe5 {[%emt 0:00:04]} 8.
dxe5 {[%emt 0:00:14]} Be7 {[%emt 0:00:05]} 9. O-O {[%emt 0:00:02]} Nc6 {
[%emt 0:00:03]} 10. Bd2 {[%emt 0:00:35]} a6 {[%emt 0:00:04]} 11. Qe2 {[%emt 0:
00:09]} Qc7 {[%emt 0:00:18]} 12. Nc3 {[%emt 0:00:11]} Nxc3 {[%emt 0:00:12]} 13.
Bxc3 {[%emt 0:00:01]} O-O {[%emt 0:00:08]} 14. Rac1 {[%emt 0:00:01]} Rd8 {
[%emt 0:00:08]} 15. a3 {[%emt 0:00:09]} b5 {[%emt 0:00:07]} 16. Bd3 {[%emt 0:
00:07]} Bb7 {[%emt 0:00:01]} 17. h3 {[%emt 0:00:13]} Qb6 {[%emt 0:00:08]} 18.
Rfd1 {[%emt 0:00:11]} Rac8 {[%emt 0:00:17]} 19. Bb1 {[%emt 0:00:23]} g6 {
[%emt 0:00:09]} 20. h4 {[%emt 0:00:09]} b4 {[%emt 0:00:11]} 21. axb4 {[%emt 0:
00:02]} Nxb4 {[%emt 0:00:01]} 22. h5 {[%emt 0:00:13]} Nd5 {[%emt 0:00:08]} 23.
Bd4 {[%emt 0:00:02]} Qb5 {[%emt 0:00:08]} 24. Qd2 {[%emt 0:00:15]} Nb4 {
[%emt 0:00:33]} 25. Rxc8 {[%emt 0:00:13]} Rxc8 {[%emt 0:00:02]} 26. hxg6 {
[%emt 0:00:04]} hxg6 {[%emt 0:00:03]} 27. Qf4 {[%emt 0:00:18]} Nd5 {[%emt 0:00:
33]} 28. Qg4 {[%emt 0:00:01]} Qe8 {[%emt 0:00:08]} 29. Ng5 {[%emt 0:00:07]} Kg7
{[%emt 0:00:05]} 30. Ne4 {[%emt 0:00:04]} Qh8 {[%emt 0:00:06]} 31. Nf6 {
[%emt 0:00:02]} Nb4 {[%emt 0:00:05]} 32. Qg3 {[%emt 0:00:02]} Nd5 {[%emt 0:00:
02]} 33. Qg4 {[%emt 0:00:01]} Rc7 {[%emt 0:00:02]} 34. Qg3 {[%emt 0:00:01]} Rc8
{[%emt 0:00:01]} 35. Bd3 {[%emt 0:00:02]} Qh6 {[%emt 0:00:02]} 36. Ng4 {
[%emt 0:00:03]} Qh5 {[%emt 0:00:01]} 37. Nf6 {[%emt 0:00:01]} Qxd1+ {[%emt 0:
00:01]} 38. Bf1 {[%emt 0:00:01]} Rc1 {[%emt 0:00:02]} 0-1